fUSD/lending_fUSD_20250623
["ID","MTS","AMOUNT","RATE_DAILY","PERIOD"]
[367169937,1750684257571,-180.527202,0.00024657,7]
[367169938,1750684257581,-490.0,0.00024657,2]
[367169939,1750684257590,-697.308931,0.00024657,2]
[367169940,1750684257600,-7007.85,0.00024657,2]
[367169941,1750684257610,-549.29,0.00024657,2]
[367169942,1750684257619,-180.527202,0.00024657,7]
[367169943,1750684257629,-180.527202,0.00024657,7]
[367169944,1750684257639,-180.527202,0.00024657,7]
[367169945,1750684257649,-5131.49369951,0.00024657,2]
[367169946,1750684257658,-180.527202,0.00024657,7]
[367169947,1750684257667,-180.527202,0.00024657,7]
[367169948,1750684257677,-1543.35,0.00024657,2]
[367169949,1750684257687,-490.0,0.00024657,2]
[367169950,1750684257696,-490.0,0.00024657,2]
[367169951,1750684257706,-490.82795367,0.00024657,2]
[367169952,1750684257717,-490.0,0.00024657,2]
[367169953,1750684257727,-1228.63,0.00024657,2]
[367169954,1750684257737,-2963.74,0.00024657,2]
[367169955,1750684257748,-490.0,0.00024657,2]
[367169956,1750684257758,-490.0,0.00024657,2]
[367169957,1750684257768,-305.010562,0.00024657,7]
[367169958,1750684257779,-305.010562,0.00024657,7]
[367169959,1750684257788,-1614.9,0.00024657,2]
[367169960,1750684257798,-305.010562,0.00024657,7]
[367169961,1750684257807,-305.010562,0.00024657,7]
[367169962,1750684257817,-491.633584,0.00024657,2]
[367169963,1750684257828,-305.010562,0.00024657,7]
[367169964,1750684257839,-490.0,0.00024657,2]
[367169965,1750684257849,-490.0,0.00024657,2]
[367169966,1750684257860,-151.825368,0.00024657,7]
[367169967,1750684257869,-1335.25,0.00024657,2]
[367169968,1750684257879,-3671.75,0.00024657,2]
[367169969,1750684257888,-491.07709627,0.00024657,2]
[367169970,1750684257898,-305.010562,0.00024657,7]
[367169971,1750684257908,-490.0,0.00024657,2]
[367169972,1750684257918,-305.010562,0.00024657,7]
[367169973,1750684257927,-305.010562,0.00024657,7]
[367169974,1750684257937,-490.0,0.00024657,2]
[367169975,1750684257947,-305.010562,0.00024657,7]
[367169976,1750684257957,-305.010562,0.00024657,7]
[367169977,1750684257967,-490.0,0.00024657,2]
[367169978,1750684257976,-490.0,0.00024657,2]
[367169979,1750684257986,-1002.86,0.00024657,2]
[367169980,1750684257996,-1375.74,0.00024657,2]
[367169981,1750684258005,-602.13,0.00024657,2]
[367169982,1750684258015,-2579.34,0.00024657,2]
[367169983,1750684258024,-212.81100995,0.00024657,2]
[367169984,1750684258033,-1695.83,0.00024657,2]
[367169985,1750684258044,-490.0,0.00024657,2]
[367169986,1750684258054,-723.803218,0.00024657,2]
[367169987,1750684258064,-1654.71,0.00024657,2]
[367169988,1750684258075,-690.1,0.00024657,2]
[367169989,1750684258088,-1518.31,0.00024657,2]
[367169990,1750684258099,-701.07,0.00024657,2]
[367169991,1750684258109,-1634.97,0.00024657,2]
[367169992,1750684258120,-490.0,0.00024657,2]
[367169993,1750684258129,-490.0,0.00024657,2]
[367169994,1750684258139,-490.0,0.00024657,2]
[367169995,1750684258149,-490.0,0.00024657,2]
[367169996,1750684258159,-490.0,0.00024657,2]
[367169997,1750684258169,-490.0,0.00024657,2]
[367169998,1750684258179,-554.86,0.00024657,2]
[367169999,1750684258188,-490.0,0.00024657,2]
[367170000,1750684258197,-750.402647,0.00024657,2]
[367170001,1750684258207,-1628.94,0.00024657,2]
[367170002,1750684258217,-420.0,0.00024657,2]
[367170003,1750684258226,-1032.39,0.00024657,2]
[367170004,1750684258236,-490.0,0.00024657,2]
[367170005,1750684258246,-1032.39,0.00024657,2]
[367170006,1750684258255,-1032.39,0.00024657,2]
[367170007,1750684258266,-150.0,0.00024658,2]
[367170008,1750684258275,-151.0,0.00024658,7]
[367170009,1750684258284,-151.0,0.00024658,7]
[367170010,1750684258294,-151.0,0.00024658,7]
[367170011,1750684258304,-151.0,0.00024658,7]
[367170012,1750684258314,-170.0895,0.00024658,7]
[367170013,1750684258323,-445.78,0.00024658,2]
[367170014,1750684258333,-150.0,0.00024658,2]
[367170015,1750684258343,-598.68649191,0.00024669,2]
[367170016,1750684258353,-150.0,0.0002467,2]
[367170017,1750684258363,-293.22941206,0.0002467,2]
[367170018,1750684258372,-499.60011461,0.00024673,2]
[367170019,1750684258381,-500.0,0.00024673,2]
[367170020,1750684258391,-500.40388009,0.00024673,2]
[367170021,1750684258401,-501.17071209,0.00024673,2]
[367170022,1750684258411,-500.55082979,0.00024673,2]
[367170023,1750684258421,-167.49726571,0.00024673,2]
[367170024,1750684258431,-500.0,0.00024673,2]
[367170025,1750684258441,-502.01101058,0.00024673,2]
[367170026,1750684258451,-500.0,0.00024673,2]
[367170027,1750684258462,-500.0,0.00024673,2]
[367170028,1750684258471,-500.0,0.00024673,2]
[367170029,1750684258481,-500.0,0.00024673,2]
[367170030,1750684258491,-504.6283505,0.00024673,2]
[367170031,1750684258500,-501.55560422,0.00024673,2]
[367170032,1750684258510,-500.0,0.00024673,2]
[367170033,1750684258519,-500.75095073,0.00024673,2]
[367170034,1750684258529,-500.58044582,0.00024673,2]
[367170035,1750684258539,-500.14759917,0.00024673,2]
[367170036,1750684258549,-500.0,0.00024673,2]
[367170037,1750684258559,-500.0,0.00024673,2]
[367170038,1750684258568,-500.0,0.00024673,2]
[367170039,1750684258578,-187.93345863,0.00024673,2]
[367170040,1750684258587,-543.54442034,0.00024673,2]
[367170041,1750684258597,-500.0,0.00024673,2]
[367170042,1750684258607,-500.0,0.00024673,2]
[367170043,1750684258616,-301.13860078,0.00024673,2]
[367170044,1750684258625,-500.0,0.00024673,2]
[367170045,1750684258635,-500.0,0.00024673,2]
[367170046,1750684258643,-167.149968,0.00024673,7]
[367170047,1750684258653,-167.149968,0.00024673,7]
[367170048,1750684258663,-44383.81079029,0.00024677,2]
[367170049,1750684258672,-500.0,0.00024678,3]
[367170050,1750684258681,-598.68649191,0.00024684,2]
[367170051,1750684258690,-150.0,0.00024687,2]
[367170052,1750684258699,-598.68649191,0.00024698,2]
[367170053,1750684258709,-4706.45,0.000247,2]
[367170054,1750684258718,-238.0,0.000247,2]
[367170055,1750684258728,-376.0,0.000247,2]
[367170056,1750684258737,-769.0,0.000247,2]
[367170057,1750684258746,-598.68649191,0.00024713,2]
[367170058,1750684258756,-200.0,0.00024723,2]
[367170059,1750684258766,-598.68649191,0.00024727,2]
[367170060,1750684258775,-202.31866,0.0002473,2]
[367170061,1750684258785,-150.0,0.00024738,2]
[367170062,1750684258795,-150.0,0.00024738,2]
[367170063,1750684258804,-500.0,0.00024738,2]
[367170064,1750684258814,-500.0,0.00024738,2]
[367170065,1750684258823,-500.0,0.00024738,2]
[367170066,1750684258832,-1727.288457,0.00024738,7]
[367170067,1750684258842,-1727.288457,0.00024738,7]
[367170068,1750684258851,-150.0,0.00024738,2]
[367170069,1750684258860,-150.0,0.00024738,2]
[367170070,1750684258869,-150.0,0.00024738,2]
[367170071,1750684258963,-500.0,0.00024738,2]
[367170072,1750684258973,-151.0,0.00024738,7]
[367170073,1750684258983,-400.314094,0.00024738,7]
[367170074,1750684258993,-400.314094,0.00024738,7]
[367170075,1750684259002,-180.527202,0.00024738,7]
[367170076,1750684259011,-180.527202,0.00024738,7]
[367170077,1750684259020,-44383.81079029,0.00024738,2]
[367170078,1750684259030,-500.0,0.00024739,3]
[367170079,1750684259039,-592.1,0.00024739,3]
[367170080,1750684259048,-500.0,0.00024739,2]
[367170081,1750684259057,-515.89581016,0.00024739,3]
[367170082,1750684259066,-305.010562,0.00024739,7]
[367170083,1750684259078,-305.010562,0.00024739,7]
[367170084,1750684259089,-598.68649191,0.00024742,2]
[367170085,1750684259099,-598.68649191,0.00024756,2]
[367170086,1750684259108,-150.0,0.00024759,2]
[367170087,1750684259117,-938.02807732,0.00024762,11]
[367170088,1750684259128,-150.0,0.00024765,2]
[367170089,1750684259137,-196.12106549,0.00024765,2]
[367170090,1750684259146,-500.0,0.00024765,2]
[367170091,1750684259157,-500.0,0.00024765,2]
[367170092,1750684259166,-500.0,0.00024765,2]
[367170093,1750684259176,-176.77402393,0.00024765,2]
[367170094,1750684259185,-150.0,0.00024765,2]
[367170095,1750684259194,-500.0,0.00024765,2]
[367170096,1750684259204,-598.68649191,0.00024771,2]
[367170097,1750684259213,-506.87400862,0.00024776,2]
[367170098,1750684259223,-152.0,0.00024776,2]
[367170099,1750684259232,-154.31656129,0.00024776,2]
[367170100,1750684259241,-166.0,0.00024776,2]
[367170101,1750684259250,-587.47584826,0.00024776,2]
[367170102,1750684259260,-150.0,0.00024778,2]
[367170103,1750684259269,-240.448,0.00024778,2]
[367170104,1750684259279,-193.313,0.00024778,2]
[367170105,1750684259288,-180.388,0.00024778,2]
[367170106,1750684259297,-150.0,0.00024778,2]
[367170107,1750684259306,-150.0,0.00024778,2]
[367170108,1750684259315,-947.0,0.00024778,2]
[367170109,1750684259325,-3339.106,0.00024778,2]
[367170110,1750684259334,-155.469,0.00024778,2]
[367170111,1750684259344,-638.0,0.00024778,2]
[367170112,1750684259354,-871.079,0.00024778,2]
[367170113,1750684259364,-594.495,0.00024778,2]
[367170114,1750684259373,-2005.0,0.00024778,2]
[367170115,1750684259382,-559.0,0.00024778,2]
[367170116,1750684259392,-1279.0,0.00024778,2]
[367170117,1750684259401,-929.0,0.00024778,2]
[367170118,1750684259411,-1677.0,0.00024778,2]
[367170119,1750684259420,-1165.686,0.00024778,2]
[367170120,1750684259430,-151.0,0.00024778,7]
[367170121,1750684259440,-151.0,0.00024778,7]
[367170122,1750684259450,-159.072091,0.00024778,7]
[367170123,1750684259459,-151.0,0.00024778,7]
[367170124,1750684259469,-598.68649191,0.00024785,2]
[367170125,1750684259478,-203.0,0.00024787,10]
[367170126,1750684259488,-150.0,0.00024793,2]
[367170127,1750684259498,-500.0,0.00024793,2]
[367170128,1750684259507,-500.0,0.00024793,2]
[367170129,1750684259518,-500.0,0.00024793,2]
[367170130,1750684259527,-150.0,0.00024793,2]
[367170131,1750684259537,-500.0,0.00024793,2]
[367170132,1750684259546,-150.0,0.00024795,4]
[367170133,1750684259556,-150.0,0.00024795,4]
[367170134,1750684259565,-150.0,0.00024795,4]
[367170135,1750684259575,-150.0,0.00024795,2]
[367170136,1750684259584,-500.0,0.00024798,2]
[367170137,1750684259594,-500.0,0.00024798,2]
[367170138,1750684259603,-500.0,0.00024798,2]
[367170139,1750684259613,-500.0,0.00024798,2]
[367170140,1750684259622,-500.0,0.00024798,2]
[367170141,1750684259632,-500.0,0.00024798,2]
[367170142,1750684259642,-500.0,0.00024798,2]
[367170143,1750684259652,-500.0,0.00024798,2]
[367170144,1750684259661,-500.0,0.00024798,2]
[367170145,1750684259670,-500.0,0.00024798,2]
[367170146,1750684259679,-500.0,0.00024798,2]
[367170147,1750684259689,-500.0,0.00024798,2]
[367170148,1750684259699,-500.0,0.00024798,2]
[367170149,1750684259709,-500.0,0.00024798,2]
[367170150,1750684259718,-500.0,0.00024798,2]
[367170151,1750684259728,-500.0,0.00024798,2]
[367170152,1750684259737,-500.0,0.00024798,2]
[367170153,1750684259748,-500.0,0.00024798,2]
[367170154,1750684259758,-500.0,0.00024798,2]
[367170155,1750684259767,-500.0,0.00024798,2]
[367170156,1750684259776,-500.0,0.00024798,2]
[367170157,1750684259785,-500.0,0.00024798,2]
[367170158,1750684259795,-500.0,0.00024798,2]
[367170159,1750684259805,-500.0,0.00024798,2]
[367170160,1750684259814,-500.0,0.00024798,2]
[367170161,1750684259824,-500.0,0.00024798,2]
[367170162,1750684259834,-500.0,0.00024798,2]
[367170163,1750684259844,-500.0,0.00024798,2]
[367170164,1750684259853,-500.0,0.00024798,2]
[367170165,1750684259863,-500.0,0.00024798,2]
[367170166,1750684259873,-500.0,0.00024798,2]
[367170167,1750684259882,-500.0,0.00024798,2]
[367170168,1750684259892,-500.0,0.00024798,2]
[367170169,1750684259902,-500.0,0.00024798,2]
[367170170,1750684259912,-500.0,0.00024798,2]
[367170171,1750684259922,-500.0,0.00024798,2]
[367170172,1750684259932,-500.0,0.00024798,2]
[367170173,1750684259942,-500.0,0.00024798,2]
[367170174,1750684259952,-462.078,0.00024798,2]
[367170175,1750684259961,-150.0,0.00024799,2]
[367170176,1750684259971,-500.0,0.00024799,2]
[367170177,1750684259981,-500.0,0.00024799,2]
[367170178,1750684259991,-500.0,0.00024799,3]
[367170179,1750684260000,-500.0,0.00024799,3]
[367170180,1750684260010,-500.0,0.00024799,3]
[367170181,1750684260020,-500.0,0.00024799,3]
[367170182,1750684260029,-500.0,0.00024799,3]
[367170183,1750684260042,-500.0,0.00024799,3]
[367170184,1750684260056,-500.0,0.00024799,3]
[367170185,1750684260066,-500.0,0.00024799,3]
[367170186,1750684260078,-500.0,0.00024799,3]
[367170187,1750684260089,-500.0,0.00024799,3]
[367170188,1750684260099,-500.0,0.00024799,3]
[367170189,1750684260108,-565.85,0.00024799,3]
[367170190,1750684260118,-565.85,0.00024799,3]
[367170191,1750684260129,-598.09831769,0.00024799,3]
[367170192,1750684260139,-44383.81079029,0.00024799,2]
[367170193,1750684260149,-2000.0,0.000248,2]
[367170194,1750684260160,-151.0,0.000248,7]
[367170195,1750684260171,-202.993277,0.000248,7]
[367170196,1750684260180,-200.525604,0.000248,7]
[367170197,1750684260190,-151.0,0.000248,7]
[367170198,1750684260200,-155.495473,0.000248,7]
[367170199,1750684260210,-151.0,0.000248,7]
[367170200,1750684260219,-151.0,0.000248,7]
[367170201,1750684260229,-151.0,0.000248,7]
[367170202,1750684260238,-288.315444,0.000248,7]
[367170203,1750684260248,-151.0,0.000248,7]
[367170204,1750684260258,-151.0,0.000248,7]
[367170205,1750684260268,-547.970525,0.000248,7]
[367170206,1750684260278,-547.970525,0.000248,7]
[367170207,1750684260287,-167.149968,0.000248,7]
[367170208,1750684260297,-167.149968,0.000248,7]
[367170209,1750684260307,-516.079459,0.000248,7]
[367170210,1750684260316,-516.079459,0.000248,7]
[367170211,1750684260326,-457761.002787,0.000248,2]
[367170212,1750684260336,-1727.288457,0.000248,7]
[367170213,1750684260345,-1727.288457,0.000248,7]
[367170214,1750684260354,-834.59255148,0.000248,3]
[367170215,1750684260364,-598.68649191,0.000248,2]
[367170216,1750684260373,-151.0,0.000248,7]
[367170217,1750684260383,-400.314094,0.000248,7]
[367170218,1750684260392,-400.314094,0.000248,7]
[367170219,1750684260402,-180.527202,0.000248,7]
[367170220,1750684260412,-180.527202,0.000248,7]
[367170221,1750684260421,-305.010562,0.000248,7]
[367170222,1750684260431,-305.010562,0.000248,7]
[367170223,1750684260442,-2000.0,0.0002481,2]
[367170224,1750684260452,-3962.000436,0.0002482,2]
[367170225,1750684260462,-150.0,0.0002482,2]
[367170226,1750684260471,-500.0,0.0002482,2]
[367170227,1750684260481,-500.0,0.0002482,2]
[367170228,1750684260491,-500.0,0.0002482,2]
[367170229,1750684260501,-174.74176358,0.0002482,2]
[367170230,1750684260510,-500.0,0.0002482,2]
[367170231,1750684260520,-150.0,0.00024825,2]
[367170232,1750684260529,-352.83100352,0.0002483,2]
[367170233,1750684260538,-176.85024721,0.00024831,4]
[367170234,1750684260548,-1581.39908837,0.00024831,2]
[367170235,1750684260558,-251.17949823,0.00024831,2]
[367170236,1750684260567,-32613.4588381,0.00024831,2]
[367170237,1750684260578,-8312.90385113,0.00024831,2]
[367170238,1750684260587,-1240.0,0.00024847,2]
[367170239,1750684260596,-228.15329194,0.00024848,2]
[367170240,1750684260606,-500.0,0.00024848,2]
[367170241,1750684260615,-500.0,0.00024848,2]
[367170242,1750684260625,-500.0,0.00024848,2]
[367170243,1750684260634,-500.0,0.00024848,2]
[367170244,1750684260643,-202.31867,0.0002485,2]
[367170245,1750684260653,-44383.81079029,0.00024861,2]
[367170246,1750684260663,-500.0,0.00024875,2]
[367170247,1750684260672,-500.0,0.00024875,2]
[367170248,1750684260682,-7576.0,0.00024877,2]
[367170249,1750684260691,-360.0,0.00024877,2]
[367170250,1750684260700,-40697.0,0.00024877,2]
[367170251,1750684260709,-443.0,0.00024877,2]
[367170252,1750684260718,-158.66428924,0.00024886,2]
[367170253,1750684260728,-7361354.13554909,0.00024892,2]
[367170254,1750684261391,-1017.8078224,0.00024892,2]
[367170255,1750684261766,-1032.39,0.00024657,2]
[367170256,1750684261775,-1032.39,0.00024657,2]
[367170257,1750684261785,-1032.39,0.00024657,2]
[367170258,1750684261795,-1032.39,0.00024657,2]
[367170259,1750684261804,-1032.39,0.00024657,2]
[367170260,1750684261813,-238.37236323,0.00024657,2]
[367170261,1750684261931,-251.62763677,0.00024657,2]
[367170262,1750684261941,-490.0,0.00024657,2]
[367170263,1750684261951,-157.80583848,0.00024798,2]
[367170264,1750684261962,-1032.39,0.00024799,3]
[367170265,1750684261972,-8231.17652475,0.00024892,2]
[367170266,1750684261988,-1736.8770169,0.00024892,2]
[367170267,1750684262001,-758.79780336,0.00024892,2]
[367170268,1750684262015,-1016.95,0.00024892,2]
[367170269,1750684262026,-342.47477844,0.00024892,2]
[367170270,1750684262038,-1399.79399091,0.00024892,2]
[367170271,1750684262052,-5090.0,0.00024892,2]
[367170272,1750684262071,-1973.174,0.00024892,2]
[367170273,1750684262088,-2615.70199691,0.00024892,2]
[367170274,1750684262614,202.0,0.00018919,2]
[367170275,1750684263007,-856.0,0.00024189,2]
[367170276,1750684263017,-490.0,0.00024657,2]
[367170277,1750684263027,-4.0,0.00024657,2]
[367170278,1750684263039,-486.0,0.00024657,2]
[367170279,1750684263049,-490.0,0.00024657,2]
[367170280,1750684263059,-490.0,0.00024657,2]
[367170281,1750684263070,-490.0,0.00024657,2]
[367170282,1750684263089,-490.0,0.00024657,2]
[367170283,1750684263109,-643.46,0.00024657,2]
[367170284,1750684263126,-1032.39,0.00024799,3]
[367170285,1750684263137,-1032.39,0.0002483,3]
[367170286,1750684263147,-2510.58476494,0.00024892,2]
[367170287,1750684263166,-4037.82476563,0.00024892,2]
[367170288,1750684263234,-467.44210788,0.00024892,2]
[367170289,1750684264627,-594.04,0.00024657,2]
[367170290,1750684264637,-490.0,0.00024657,2]
[367170291,1750684264649,-491.13807775,0.00024657,2]
[367170292,1750684264660,-151.0,0.00024657,7]
[367170293,1750684264670,-490.0,0.00024657,2]
[367170294,1750684264680,-28.89105396,0.00024657,7]
[367170295,1750684268850,50000.0,0.00037958,60]
[367170296,1750684347126,3000.0,0.00037958,120]
[367170297,1750684350969,3000.0,0.00037958,120]
[367170298,1750684357204,3000.0,0.00037958,120]
[367170300,1750684368652,4000.0,0.00037958,120]
[367170301,1750684384626,1000.0,0.00037958,120]
[367170304,1750684924475,230.39,0.00026464,120]
[367170305,1750684972663,12572.99531988,0.00037845,60]
[367170306,1750685020224,6080.0892565,0.00037845,60]
[367170307,1750685064804,50000.0,0.00037845,60]
[367170308,1750685108570,11418.7578648,0.00014,2]
[367170309,1750685108595,80000.0,0.00014,2]
[367170310,1750685108621,80000.0,0.00014,2]
[367170311,1750685108649,80000.0,0.00014,2]
[367170312,1750685108674,80000.0,0.00014,2]
[367170313,1750685108700,80000.0,0.00014,2]
[367170314,1750685108725,80000.0,0.00014,2]
[367170315,1750685108751,3581.2421352,0.00014,2]
[367170317,1750685163035,8882.84344697,8e-05,2]
[367170319,1750685189542,307.93,0.00013699,2]
[367170347,1750685278941,67227.98441783,0.00014,2]
[367170348,1750685278965,80000.0,0.00014,2]
[367170349,1750685278988,80000.0,0.00014,2]
[367170350,1750685279010,20000.0,0.00014,2]
[367170351,1750685279033,20000.0,0.00014,2]
[367170352,1750685279055,20000.0,0.00014,2]
[367170353,1750685279076,12772.01558217,0.00014,2]
[367170359,1750685323980,-333.20751452,0.000195,2]
[367170370,1750685412547,2077.07055013,0.00037847,60]
[367170390,1750685432193,-586.92837782,0.00019499,2]
[367170391,1750685432204,-492.5527292,0.00019499,2]
[367170392,1750685432277,-120.51889298,0.00019499,2]
[367170393,1750685432287,-2081.02992359,0.000195,2]
[367170394,1750685432297,-564.08793815,0.000195,2]
[367170395,1750685432324,-1721.9651875,0.000195,2]
[367170410,1750685432461,-369.93517089,0.000195,2]
[367170424,1750685437960,-318.4925114,0.000195,2]
[367170601,1750685440252,-511.08466066,0.000195,2]
[367170602,1750685440369,-249.23004994,0.000195,2]
[367170631,1750685443384,-894.556144,0.000195,2]
[367170639,1750685446172,-3886.62319999,0.000195,2]
[367170643,1750685446432,-2102.66266368,0.000195,2]
[367170645,1750685446441,-2972.83733632,0.0002,2]
[367170668,1750685471908,906.0,0.00027397,120]
[367170669,1750685506729,546.0,0.00027,120]
[367170672,1750685587259,1642.7,0.00037847,60]
[367170673,1750685602094,2042.24097053,0.00027397,120]
[367170674,1750685608945,1642.0,0.00037847,60]
[367170675,1750685634225,1096.18,0.00037847,60]
[367170676,1750685657330,3285.54,0.00037847,60]
[367170677,1750685678630,547.59,0.00037847,60]
[367170678,1750685693505,1095.18,0.00037848,60]
[367170679,1750685715464,2190.36,0.00037848,60]
[367170681,1750685737581,1642.77,0.00037848,60]
[367170683,1750685825410,568.7316891,0.00037848,60]
[367170684,1750685928796,215.5,0.0002632,120]
[367170737,1750686149732,407.35,0.00037851,60]
[367171353,1750686229119,-458.87,0.00025786,20]
[367171356,1750686250603,-541.13,0.00024658,15]
[367171506,1750686268578,324.48,0.00013699,2]
[367171529,1750686337376,10000.0,0.00037852,86]
[367171530,1750686415103,1000.0,0.00037852,60]
[367171531,1750686430800,1000.0,0.00037852,60]
[367171538,1750686445679,9716.0,0.00037852,60]
[367171564,1750686632154,-151.0,0.00019518,2]
[367171565,1750686632164,-176.14,0.00019518,2]
[367171566,1750686632174,-203.0,0.00019961,2]
[367171567,1750686632184,-15.30642781,0.00019988,2]
[367171568,1750686632197,-140.80028389,0.00019988,2]
[367171569,1750686632207,-151.0,0.00019988,2]
[367171570,1750686632216,-151.0,0.00019988,2]
[367171571,1750686632225,-59.04939753,0.00019988,2]
[367171572,1750686632236,-91.95060247,0.00019988,2]
[367171573,1750686632246,-171.13220523,0.00019988,2]
[367171574,1750686632256,-1200.0,0.00019998,2]
[367171575,1750686632266,-300.0,0.00019999,2]
[367171576,1750686632275,-300.0,0.00019999,2]
[367171577,1750686632285,-95.28245299,0.0002,2]
[367171578,1750686632310,-3751.56464939,0.0002,2]
[367171579,1750686632324,-2609.49592439,0.0002,2]
[367171580,1750686632335,-1262.99999114,0.0002,2]
[367171581,1750686632347,-1704.831098,0.0002,2]
[367171582,1750686632359,-53.91215139,0.0002,2]
[367171583,1750686632369,-2725.4891138,0.0002001,2]
[367171584,1750686632381,-1500.1502026,0.0002001,2]
[367171585,1750686632405,-1546.3606836,0.0002001,2]
[367171586,1750686632414,-324.48,0.00020187,2]
[367171587,1750686632423,-1389.8723,0.0002023,2]
[367171588,1750686632432,-1389.87231,0.0002024,2]
[367171589,1750686632442,-1389.8723,0.0002027,2]
[367171590,1750686632451,-1389.87231,0.000203,2]
[367171591,1750686632461,-1389.8723,0.0002033,2]
[367171592,1750686632470,-1389.87231,0.0002036,2]
[367171593,1750686632480,-243.0,0.0002058,2]
[367171594,1750686632489,-203.0,0.00021253,3]
[367171595,1750686632499,-243.0,0.0002159,2]
[367171596,1750686632509,-420.0,0.00021777,2]
[367171597,1750686632519,-1680.0,0.0002188,2]
[367171598,1750686632528,-2751.0,0.00021984,2]
[367171599,1750686632537,-200.0,0.00022033,2]
[367171600,1750686632547,-177.39,0.00022091,2]
[367171601,1750686632556,-150.0,0.0002234,2]
[367171602,1750686632566,-203.0,0.00022544,5]
[367171604,1750686632579,-922.09,0.00022595,2]
[367171606,1750686632589,-798.39,0.00022595,2]
[367171607,1750686632599,-798.39,0.00022595,2]
[367171608,1750686632608,-462.14,0.00022595,2]
[367171609,1750686632617,-243.0,0.0002261,2]
[367171610,1750686632627,-150.0,0.0002261,2]
[367171611,1750686632637,-798.39,0.00022682,2]
[367171612,1750686632647,-1000.0,0.00022772,2]
[367171613,1750686632657,-200.0,0.00022814,2]
[367171614,1750686632667,-462.14,0.00022941,2]
[367171615,1750686632676,-200.0,0.00023,2]
[367171616,1750686632686,-157.66,0.00023396,2]
[367171617,1750686632695,-215.5,0.00023396,2]
[367171618,1750686632705,-157.66,0.00023405,2]
[367171619,1750686632714,-157.66,0.00023415,2]
[367171620,1750686632723,-157.66,0.00023425,2]
[367171621,1750686632733,-157.66,0.00023435,2]
[367171622,1750686632742,-157.66,0.00023444,2]
[367171623,1750686632752,-157.66,0.00023454,2]
[367171624,1750686632761,-157.66,0.00023464,2]
[367171625,1750686632772,-157.66,0.00023474,2]
[367171626,1750686632781,-157.66,0.00023483,2]
[367171627,1750686632791,-157.66,0.00023493,2]
[367171628,1750686632800,-157.66,0.00023503,2]
[367171630,1750686632810,-157.66,0.00023513,2]
[367171632,1750686632820,-230.39,0.00023523,2]
[367171633,1750686632842,-425.0,0.00023538,2]
[367171634,1750686632852,-7142.856,0.0002355,2]
[367171635,1750686632861,-151.0,0.0002355,2]
[367171636,1750686632870,-207.4,0.0002355,2]
[367171637,1750686632880,-151.0,0.0002355,2]
[367171638,1750686632890,-1000.0,0.0002355,2]
[367171639,1750686632900,-1000.0,0.0002355,2]
[367171640,1750686632909,-1000.0,0.0002355,2]
[367171641,1750686632919,-1000.0,0.0002355,2]
[367171642,1750686632928,-151.0,0.0002355,2]
[367171643,1750686632938,-668.65185757,0.0002355,2]
[367171644,1750686632947,-1000.0,0.0002355,2]
[367171645,1750686632957,-151.0,0.0002355,2]